Cogmind - Beta 13 @@@ ROGUE MODE // 2024.06.30 @ 03:15:55 Player: Duduxx Result: Destroyed by G-50 Soldier with Heavy Laser Performance ------------- Evolutions (1) 500 Regions Visited (6) 1200 Robots Destroyed (27) 135 Value Destroyed (606) 606 Prototype IDs (24) 480 Alien Tech Used (0) 0 Bonus (512) 512 TOTAL SCORE: 3433 Bonus ------- Follower Combat Kills 212 Aligned with FarCom 300 Cogmind --------- Core Integrity 0/400 Matter 236/300 Energy 31/100 System Corruption 10% Temperature Warm (162) Movement Rolling (80) Location -8/Mines Parts ------- > --- POWER (1) -------- (None) > --- PROPULSION (2) --- Wheel > --- UTILITY (4) ------ Medium Storage Unit Signal Interpreter Improved Targeting Computer > --- WEAPON (2) ------- (None) > --- INVENTORY (10) --- Grenade Launcher Grenade Launcher Rocket Launcher Datajack Katana Peak State ------------ > --- POWER ------------ Reinforced Ion Engine > --- PROPULSION ------- (None) > --- UTILITY ---------- Medium Storage Unit Signal Interpreter Improved Targeting Computer > --- WEAPON ----------- Latent Energy Streamer Guided Plasma Cannon > --- INVENTORY -------- Light Ion Engine Grenade Launcher Grenade Launcher Rocket Launcher Datajack Deploy-a-Sentry [Rating: 25] Favorites ----------- Power Reinforced Ion Engine Engine Reinforced Ion Engine Power Core Light Nuclear Core Propulsion Light Treads Treads Light Treads Leg Aluminum Leg Wheel Compact Wheel Utility Signal Interpreter Device Terrain Scanner Storage Small Storage Unit Processor Signal Interpreter Weapon Light Assault Rifle Energy Gun Particle Gun Energy Cannon Guided Plasma Cannon Ballistic Gun Light Assault Rifle Launcher Grenade Launcher Build | -11 -10 -10 -9 -9 -9 -8 ------- Run | Yrd Mat Min Mat Min Exi Min Slots Evolved 2 | . . . 2 . . . Power . | . . . . . . . Propulsion . | . . . . . . . Utility 2 | . . . 2 . . . Weapon . | . . . . . . . Parts Attached 45 | 6 11 5 2 13 3 5 Power 6 | 1 1 1 . 2 . 1 Engine 5 | 1 . 1 . 2 . 1 Core 1 | . 1 . . . . . Reactor . | . . . . . . . Propulsion 12 | 2 6 2 . . . 2 Treads 5 | . 3 2 . . . . Leg 1 | . . . . . . 1 Wheel 6 | 2 3 . . . . 1 Hover . | . . . . . . . Flight . | . . . . . . . Utility 13 | 1 3 1 2 5 1 . Device 6 | . 1 1 1 3 . . Storage 4 | 1 2 . . . 1 . Processor 3 | . . . 1 2 . . Hackware . | . . . . . . . Protection . | . . . . . . . Artifact . | . . . . . . . Weapon 14 | 2 1 1 . 6 2 2 Energy Gun 4 | 2 . 1 . 1 . . Energy Cannon 3 | . . . . . 1 2 Ballistic Gun 5 | . 1 . . 3 1 . Ballistic Cannon . | . . . . . . . Launcher 2 | . . . . 2 . . Special Weapon . | . . . . . . . Impact Weapon . | . . . . . . . Slashing Weapon . | . . . . . . . Piercing Weapon . | . . . . . . . Special Melee Weapon . | . . . . . . . Unidentified Prototypes 2 | . . 1 . . 1 . Parts Lost 18 | . 3 2 . 8 . 5 Power 3 | . 1 . . . . 2 Propulsion 4 | . 1 1 . 2 . . Utility 4 | . . . . 3 . 1 Weapon 7 | . 1 1 . 3 . 2 Highest Loss Streak 3 | . 1 2 . 3 . 2 To Critical Strikes 1 | . . . . 1 . . Average Slot Usage (%) 80 | . 93 99 100 88 77 63 Engine 10 | . 2 14 11 10 11 10 Core 1 | . 11 . . . . . Treads 4 | . . 15 22 15 . . Wheel 4 | . 26 11 . . . . Device 9 | . 9 14 22 11 11 . Storage 11 | . 14 14 11 11 11 11 Processor 16 | . . . 11 20 22 22 Energy Gun 5 | . 25 14 11 5 . . Energy Cannon 6 | . . . . . 5 19 Ballistic Gun 10 | . 2 14 11 12 16 . Naked Turns . | . . . . . . . Heaviest Build 93 | 13 93 15 16 20 32 40 Greatest Support 40 | 26 40 40 40 40 3 10 Greatest Overweight (x) 13 | 1 3 . . 5 10 13 Average Overweight (x) 2 | . . . . . 6 10 Largest Inventory Capacity 25 | 8 25 8 8 8 10 10 Average Capacity 8 | 7 8 8 8 8 8 10 Most Carried 8 | 4 8 8 8 8 8 8 Average Carried 6 | 1 5 6 5 4 6 6 Final Capacity 10 | 8 8 8 8 8 10 10 Final Carried 8 | 4 8 7 8 5 8 5 Class Distribution -------------------- 95% | Mutant 4% | Skirmisher Dominant Class ---------------- Mutant | -10/Materials Mutant | -10/Mines Skirmisher | -9/Materials Mutant | -9/Mines Mutant | -9/Exiles Mutant | -8/Mines Resources | -11 -10 -10 -9 -9 -9 -8 ----------- Run | Yrd Mat Min Mat Min Exi Min Matter Collected 803 | 135 228 42 . 202 . 196 Remotely . | . . . . . . . Salvage Created 844 | . 352 72 . 391 . 29 Parts 45 | . 14 7 . 22 . 2 Haulers Intercepted . | . . . . . . . Recyclers Shooed . | . . . . . . . Parts Field Recycled . | . . . . . . . Retrieved Matter . | . . . . . . . Parts Self-Destructed . | . . . . . . . Prevented . | . . . . . . . Kills | -11 -10 -10 -9 -9 -9 -8 ------- Run | Yrd Mat Min Mat Min Exi Min Combat Hostiles Destroyed 24 | . 6 2 . 16 . . Guns 22 | . 6 2 . 14 . . AOE 2 | . . . . 2 . . Classes Destroyed 5 | . 2 1 . 1 . 1 Worker 1 | . . . . . . 1 Recycler 2 | . 1 1 . . . . Swarmer 11 | . . 2 . 9 . . Grunt 12 | . 6 . . 6 . . Brawler 1 | . . . . 1 . . Best Kill Streak 4 | . 3 2 . 4 . 1 Combat Bots Only 4 | . 2 1 . 4 . . Max Kills in Single Turn 2 | . 1 1 . 2 . 1 Gunslinging 1 | . . . . 1 . . Exploded 2 | . . . . 2 . . Melee . | . . . . . . . Uniques/NPCs Destroyed . | . . . . . . . Combat | -11 -10 -10 -9 -9 -9 -8 -------- Run | Yrd Mat Min Mat Min Exi Min Hostile Shots Fired 229 | . 51 18 6 96 . 58 Missed 63 | . 10 8 2 20 . 23 Damage Taken 2132 | 1 491 79 58 884 . 619 Core 634 | . 211 8 15 191 . 209 Absorbed by Shields . | . . . . . . . Core Remaining (%) 56 | 100 . 12 . . . . Volleys Fired 105 | . 27 5 . 61 . 12 Largest 2 | . 2 2 . 2 . 1 Hottest 120 | . 80 85 . 85 . 120 Shots Fired 181 | . 54 9 . 103 2 13 Gun 165 | . 54 9 . 100 2 . Cannon 13 | . . . . . . 13 Launcher 3 | . . . . 3 . . Special . | . . . . . . . Kinetic 76 | . 7 5 . 62 2 . Thermal 81 | . 27 4 . 38 . 12 Explosive 3 | . . . . 3 . . Electromagnetic 21 | . 20 . . . . 1 Robot Hit Streak 15 | . 7 4 . 9 . 15 Robot Miss Streak 6 | . 3 2 . 6 . . Penetration Max . | . . . . . . . Secondary Targets 5 | . 2 . . 3 . . Max Gunslinging Chain 1 | . 1 . . 1 . . Shots Hit Robots 115 | . 36 5 . 61 . 13 Core Hits 49 | 1 17 3 . 26 . 2 Critical Kills . | . . . . . . . Critical Parts Destroyed . | . . . . . . . Critical Strikes . | . . . . . . . Melee Attacks . | . . . . . . . Impact . | . . . . . . . Slashing . | . . . . . . . Piercing . | . . . . . . . Sneak Attacks . | . . . . . . . Combat Hostiles . | . . . . . . . Follow-up Attacks . | . . . . . . . Damage Inflicted 1715 | 3 464 53 . 768 . 427 Guns 1173 | . 464 52 . 657 . . Cannons 396 | . . . . . . 396 Explosions 135 | . . . . 108 . 27 Melee . | . . . . . . . Ramming 11 | 3 . 1 . 3 . 4 Kinetic 363 | . 40 26 . 297 . . Thermal 1015 | . 243 26 . 360 . 386 Explosive 108 | . . . . 108 . . Electromagnetic 218 | . 181 . . . . 37 Impact . | . . . . . . . Slashing . | . . . . . . . Piercing . | . . . . . . . Highest Corruption 10 | . . . . 9 9 10 Average Corruption 9 | . . . . 8 9 9 Corruption Purged . | . . . . . . . Corruption Blocked . | . . . . . . . Effects 95 | . . . . 17 55 23 Message Errors 21 | . . . . 3 12 6 Matter Fused 26 | . . . . 5 15 6 Heat Flow Errors 8 | . . . . . 8 . Energy Discharges 10 | . . . . 2 5 3 Parts Rejected 6 | . . . . 3 . 3 Parts Fused 1 | . . . . . 1 . Data Loss (minor) 13 | . . . . 2 9 2 Data Loss (major) 5 | . . . . . 3 2 Misfires 4 | . . . . 1 2 1 Alerts 1 | . . . . 1 . . Overload Shots . | . . . . . . . Overflow Damage 34 | . . . . 4 . 30 Projectiles 30 | . . . . . . 30 Explosions 4 | . . . . 4 . . Melee . | . . . . . . . Knockbacks . | . . . . . . . Impact . | . . . . . . . Kinetic . | . . . . . . . Secondary . | . . . . . . . Self-Inflicted Damage 110 | 1 . . . 72 . 37 Shots 3 | . . . . 2 . 1 Rammed 5 | 2 . . . 1 . 2 Targets Rammed 6 | 2 . 1 . 1 . 2 Kicked . | . . . . . . . Crushed 1 | . . 1 . . . . Highest Temperature 345 | . 288 44 6 345 267 264 Average Temperature 108 | . 113 23 6 119 87 110 Received Heat Transfer 804 | . 255 . 45 189 . 315 Siege Activations . | . . . . . . . Robots Corrupted . | . . . . . . . Combat Hostiles . | . . . . . . . Parts Fried . | . . . . . . . Impact Corruptions . | . . . . . . . Robots Melted . | . . . . . . . Combat Hostiles . | . . . . . . . Parts Melted 3 | . . . . 3 . . Heat Transferred 2343 | . 550 62 . 851 . 880 Parts Sabotaged . | . . . . . . . Parts Stolen . | . . . . . . . Parts Stripped . | . . . . . . . Power Chain Reactions . | . . . . . . . Latent Energy Used 62 | . . . . . . 62 LE Corruption 1 | . . . . . . 1 Alert | -11 -10 -10 -9 -9 -9 -8 ------- Run | Yrd Mat Min Mat Min Exi Min Peak Influence 429 | . 165 170 26 429 . 83 Initial 60 | . . 60 11 9 . . Average 107 | . 78 117 12 219 . 54 Maximum Alert Level 2 | . . . . 2 . . Low Security (%) 85 | 100 100 100 100 39 . 100 Level 1 13 | . . . . 58 . . Level 2 . | . . . . 2 . . Level 3 . | . . . . . . . Level 4 . | . . . . . . . Level 5 . | . . . . . . . High Security . | . . . . . . . Max Security . | . . . . . . . Squads Dispatched 1 | . 1 . . . . . Investigation 1 | . 1 . . . . . Extermination . | . . . . . . . Reinforcement . | . . . . . . . Assault . | . . . . . . . Garrison . | . . . . . . . Intercept . | . . . . . . . Searches Triggered . | . . . . . . . Construction Impeded . | . . . . . . . Haulers Reinforced . | . . . . . . . Active Scanning Responses . | . . . . . . . Cargo Convoy Interrupts . | . . . . . . . Stealth | -11 -10 -10 -9 -9 -9 -8 --------- Run | Yrd Mat Min Mat Min Exi Min Distress Signals 1 | . . . . 1 . . Communications Jammed . | . . . . . . . Distress Signals . | . . . . . . . Times Spotted 53 | . 13 5 2 24 . 9 Peak Tracking Total 4 | . 4 3 3 4 . 3 Tactical Retreats 7 | . . 3 . 4 . . Traps | -11 -10 -10 -9 -9 -9 -8 ------- Run | Yrd Mat Min Mat Min Exi Min Traps Triggered . | . . . . . . . Indirectly . | . . . . . . . Trap Hack Attempts . | . . . . . . . Triggered . | . . . . . . . Disarmed . | . . . . . . . Reprogrammed . | . . . . . . . Reused . | . . . . . . . Traps Extracted . | . . . . . . . Installed . | . . . . . . . Triggered . | . . . . . . . Machines | -11 -10 -10 -9 -9 -9 -8 ---------- Run | Yrd Mat Min Mat Min Exi Min Machines Disabled . | . . . . . . . Max in Single Turn . | . . . . . . . Machines Repaired . | . . . . . . . Machines Dismantled . | . . . . . . . Machines Sabotaged . | . . . . . . . Overloaded Fab Kills . | . . . . . . . Hacking | -11 -10 -10 -9 -9 -9 -8 --------- Run | Yrd Mat Min Mat Min Exi Min Machines Accessed 3 | . 2 . . . 1 . Terminals 2 | . 2 . . . . . Fabricators . | . . . . . . . Repair Stations . | . . . . . . . Recycling Units . | . . . . . . . Scanalyzers . | . . . . . . . Garrison Access . | . . . . . . . Total Hacks 6 | . 5 . . . 1 . Successful 2 | . 1 . . . 1 . Failed 4 | . 4 . . . . . Catastrophic 1 | . 1 . . . . . Database Lockouts . | . . . . . . . Manual 3 | . 2 . . . 1 . Terminals 5 | . 5 . . . . . Fabricators . | . . . . . . . Repair Stations . | . . . . . . . Recycling Units . | . . . . . . . Scanalyzers . | . . . . . . . Garrison Access . | . . . . . . . Terminal Hacks 2 | . 1 . . . 1 . Robot Analysis 1 | . 1 . . . . . Derelict Proto ID Bank 1 | . . . . . 1 . Fabricator Hacks . | . . . . . . . Repair Station Hacks . | . . . . . . . Recycling Unit Hacks . | . . . . . . . Scanalyzer . | . . . . . . . Garrison Access Hacks . | . . . . . . . Unauthorized Hacks . | . . . . . . . Terminals . | . . . . . . . Fabricators . | . . . . . . . Repair Stations . | . . . . . . . Recycling Units . | . . . . . . . Scanalyzers . | . . . . . . . Garrison Access . | . . . . . . . Data Cores Recovered . | . . . . . . . Used . | . . . . . . . Hacking Detections 1 | . 1 . . . . . Full Trace Events 1 | . 1 . . . . . Feedback Events . | . . . . . . . Feedback Blocked . | . . . . . . . Robot Schematics Acquired . | . . . . . . . Robots Built . | . . . . . . . Authchips . | . . . . . . . Time . | . . . . . . . Total Robot Build Rating . | . . . . . . . Part Schematics Acquired . | . . . . . . . Parts Built . | . . . . . . . Authchips . | . . . . . . . Time . | . . . . . . . Total Part Build Rating . | . . . . . . . Parts Repaired . | . . . . . . . Time . | . . . . . . . Parts Recycled . | . . . . . . . Recycled Matter . | . . . . . . . Retrieved Matter . | . . . . . . . Retrieved Components . | . . . . . . . Parts Scanalyzed . | . . . . . . . Part Schematics Acquired . | . . . . . . . Parts Damaged . | . . . . . . . Bothacking | -11 -10 -10 -9 -9 -9 -8 ------------ Run | Yrd Mat Min Mat Min Exi Min Used RIF Installer . | . . . . . . . Robots Hacked . | . . . . . . . Non-combat . | . . . . . . . Combat . | . . . . . . . Robot Hacks Applied . | . . . . . . . Relay Couplers Released . | . . . . . . . Fabnet Peak Effective % . | . . . . . . . Robots Rewired . | . . . . . . . Allies Hacked . | . . . . . . . Hacks Repelled . | . . . . . . . Allies | -11 -10 -10 -9 -9 -9 -8 -------- Run | Yrd Mat Min Mat Min Exi Min Total Allies . | . . . . . . . Largest Group . | . . . . . . . Highest-Rated Group . | . . . . . . . Highest-Rated Ally . | . . . . . . . Total Orders . | . . . . . . . Ally Attacks 16 | . . . . . . 16 Total Damage 846 | . . . . . . 846 Kills 6 | . . . . . . 6 Allies Corrupted . | . . . . . . . Allies Melted . | . . . . . . . Turrets Deployed 2 | . . . . . . 2 Intel | -11 -10 -10 -9 -9 -9 -8 ------- Run | Yrd Mat Min Mat Min Exi Min Robot Analysis Total 1 | . 1 . . . . . Derelict Logs Recovered 3 | . . 2 . 1 . . Drone Launches . | . . . . . . . Drone Recoveries . | . . . . . . . Exploration | -11 -10 -10 -9 -9 -9 -8 ------------- Run | Yrd Mat Min Mat Min Exi Min Turns Passed 3499 | 51 338 415 87 484 1447 677 Spaces Moved 1333 | 41 258 317 51 168 390 108 Core 523 | 4 . . . 33 390 96 Treads 340 | . 5 149 51 135 . . Legs 11 | . . . . . . 11 Wheels 459 | 37 253 168 . . . 1 Hover . | . . . . . . . Flight . | . . . . . . . Fastest Speed 50 | 50 90 90 160 160 300 80 Average Speed 234 | 88 91 123 160 187 369 580 Slowest Speed 700 | 100 160 160 160 300 550 700 Overloaded Moves . | . . . . . . . Propulsion Burnouts . | . . . . . . . Robots Hopped 3 | . . . . . . 3 Cave-ins Triggered . | . . . . . . . Exploration Rate (%) 34 | 3 41 63 7 40 62 22 Regions Visited 6 Branch Regions 4 Pre-discovered Areas 1 | . . . . 1 . . Known Exits Taken 3 | . . . 1 1 1 . Unknown Exits Taken 3 | 1 1 1 . . . . Scrap Searched 1 | . . 1 . . . . Spaces Dug . | . . . . . . . Terrain Destroyed 22 | . . . . 21 . 1 Melee . | . . . . . . . Projectile 1 | . . . . . . 1 AOE 21 | . . . . 21 . . Terrain Rammed . | . . . . . . . Walls Destroyed . | . . . . . . . Machines Disabled . | . . . . . . . Actions | -11 -10 -10 -9 -9 -9 -8 --------- Run | Yrd Mat Min Mat Min Exi Min Total 1523 | 52 303 333 57 245 401 132 Wait 3 | . . . . . . 3 Move 1322 | 41 257 316 50 167 389 102 Hop 3 | . . . . . . 3 Pick Up 25 | 4 5 3 4 1 5 3 Fast Attach 17 | 6 3 1 . 5 1 1 Attach 17 | . 2 3 2 5 1 4 Detach 5 | . 1 1 . 1 2 . Swap 11 | . 6 1 . 3 1 . Drop 10 | . 2 2 1 1 2 2 Fire 105 | . 27 5 . 61 . 12 Melee . | . . . . . . . Ram 3 | 1 . . . . . 2 Kick . | . . . . . . . Crush 2 | . . 1 . 1 . . Escape Stasis . | . . . . . . . Rewire . | . . . . . . . Trap . | . . . . . . . Miscellaneous . | . . . . . . . Route ------- -11/Scrapyard -10/Materials -10/Mines -9/Materials -9/Mines -9/Exiles (discovered 2 exits: *Min x2) -8/Mines History --------- Turn | Location | Event 2 | -11/Scrapyard | Met Revision 17 29 | -11/Scrapyard | Discovered new exit (range 15) 52 | -11/Scrapyard | Entered Materials 250 | -10/Materials | Core integrity fell below 50% 308 | -10/Materials | Build established: Mutant 335 | -10/Materials | Core integrity fell below 20% 373 | -10/Materials | Discovered new exit (range 12) 390 | -10/Materials | Entered Mines 394 | -10/Mines | Learned location of 1 exit from Materials 476 | -10/Mines | Received a Rocket Launcher from a helpful Derelict 557 | -10/Mines | Learned Materials garrison access intel 659 | -10/Mines | Found a damaged Exp. Sensor Array with a note attached 662 | -10/Mines | Found Prototype Device 663 | -10/Mines | Identified Exp. Sensor Array 770 | -10/Mines | Discovered new exit (range 6) 805 | -10/Mines | Entered Materials 805 | -9/Materials | Evolved 2 slots: Utility x2 806 | -9/Materials | Identified exit to Mines 892 | -9/Materials | Entered Mines 934 | -9/Mines | Learned location of Storage (-7) 991 | -9/Mines | Lost 3 parts (3u) 1104 | -9/Mines | Excavation squad dispatched 1104 | -9/Mines | A large section of the Mines collapsed 1247 | -9/Mines | Lost 3 parts (1n2w) 1275 | -9/Mines | Core integrity fell below 50% 1354 | -9/Mines | Excavation squad dispatched 1355 | -9/Mines | Deemed a non-threat by the Exiles lab entrance 1358 | -9/Mines | Discovered new exit (range 5) 1370 | -9/Mines | Identified exit to Exiles 1376 | -9/Mines | Entered Exiles 1451 | -9/Exiles | Discovered new exit (range 15) 1487 | -9/Exiles | Met 8R-AWN 1544 | -9/Exiles | Met EX-HEX 1673 | -9/Exiles | Met EX-BIN 1730 | -9/Exiles | Aligned with FarCom system 1733 | -9/Exiles | Given EX-Vault access code 1871 | -9/Exiles | Met EX-DEC 2045 | -9/Exiles | Opened EX-Vault 2072 | -9/Exiles | Found Deploy-a-Sentry 2088 | -9/Exiles | Found Prototype Energy Cannon 2097 | -9/Exiles | Found Prototype Energy Cannon 2097 | -9/Exiles | Identified Gui. Plasma Cannon 2121 | -9/Exiles | Found Deploy-a-Sentry 2136 | -9/Exiles | Identified Latent Energy Streamer 2230 | -9/Exiles | Warned to stay clear of 0b10 Research branches 2735 | -9/Exiles | Discovered new exit (range 12) 2818 | -9/Exiles | Identified exit to Mines 2823 | -9/Exiles | Stole three prototypes: Gui. Plasma Cannon, Latent Energy Streamer, Deploy-a-Sentry 2823 | -9/Exiles | Entered Mines 2829 | -8/Mines | DAS Turret deployed 3169 | -8/Mines | System corruption reached 10% 3397 | -8/Mines | Core integrity fell below 20% 3400 | -8/Mines | DAS Turret deployed 3500 | -8/Mines | Destroyed by G-50 Soldier with Heavy Laser Last Messages --------------- 03435_ K-01 Serf collects debris. 03435_ Acquired 50 matter. 03440_ K-01 Serf collects debris. 03441_ System corrupted: Component data lost. 03445_ K-01 Serf collects debris. 03457_ Acquired Aluminum Leg. 03459_ Acquired 46 matter. 03460_ K-01 Serf collects debris. 03463_ System corrupted: Energy discharge (-40). 03466_ K-01 Serf destroyed. 03478_ System corrupted: Latent Energy Streamer rejected. 03481_ Lgt. Ion Engine destroyed. 03482_ R-06 Scavenger collects Lgt. Ion Engine. 03483_ Acquired Wheel. 03487_ R-06 Scavenger collects Latent Energy Streamer. 03492_ Destroyed Unknown Wheel. 03496_ Gui. Plasma Cannon destroyed. 03498_ System corrupted: Aluminum Leg rejected. Map ----- +----------------------------------------------------+ | ?????????????????????????????????????????????????? | | ???????????????????????????????##????????????????? | | ?????????????????????????????## ????????????????? | | ???????????????????????????## ??????????###????? | | ??????????????????????????## ?????????? ????? | | ??????????????????????????# ??????????"""????? | | ?????????????????????????? ???????????"""????? | | ??????????????????????????? ???????????"""????? | | ???????????????????????????# #??????????? ????? | | ???????????????????????????# #???????????# #????? | | ???????????????????????????# #???????????# #????? | | ???????????????????????????# ############# ####?? | | ????????????????????##?????# #?? | | ???????????????????? ?????# ######## ####### #?? | | ???????????????????? #????# #?????# #?????# #?? | | ???????????????????? #??## #?????# #?????# ### | | ????????????????????? #?# #?????# #?????# | | ????????????????????? ?# ##?#### #?????##### | | ????????????????????? ?# ### #?????????? | | ?????????????#####???# ?## ## ####?????????? | | ????????????## #?## ??## t #????????????? | | ????????????# ## ??## ####????????????? | | ????????????? ?##% % ##???????????????? | | ???????????????""" ### ##????????????????? | | ????????? ? """ ## %##?????????????????? | | ???????? """ @ ##??????????????????? | | ??????????# g = ##???????????????????? | | ???????????#r g ##????????????????????? | | ???????????# g #?????????????????????? | | ???????????## % #????????????????????? | | ????????????### #????????????????????? | | ??????????????## ##????????????????????? | | ???????????????### #######?????????????????????? | | ?????????????????####????????????????????????????? | | ?????????????????????????????????????????????????? | | ?????????????????????????????????????????????????? | | ?????????????????????????????????????????????????? | | ?????????????????????????????????????????????????? | | ?????????????????????????????????????????????????? | | ?????????????????????????????????????????????????? | | ?????????????????????????????????????????????????? | | ?????????????????????????????????????????????????? | | ?????????????????????????????????????????????????? | | ?????????????????????????????????????????????????? | | ?????????????????????????????????????????????????? | | ?????????????????????????????????????????????????? | | ?????????????????????????????????????????????????? | | ?????????????????????????????????????????????????? | | ?????????????????????????????????????????????????? | | ?????????????????????????????????????????????????? | +----------------------------------------------------+ Best States ------------- Heat Dissipation 28 Energy Generation 14 Energy Capacity 265 Matter Stores 300 Matter Capacity 300 Sight Range 16 Robot Scan Range 20 Terrain Scan Range 14 Terrain Scan Density 10 Evasion (%) 42 Targeting Accuracy 6 Recoil Reduction 2 Item Schematics ----------------- None Robot Schematics ------------------ None Fabricated ------------ Nothing Alien Tech Used ----------------- None Achievements -------------- None Challenges ------------ None Game ------ Seed MeleeRecyclingDoublenader Manual? 0 Play Time 00:18:55 Cumulative 10.0 hours Start 2024.06.30 @ 02:56:34 End 2024.06.30 @ 03:15:55 Sessions 1 Manual Loads 0 Difficulty Rogue Special Mode None Game No. 24 Rogue 24 Adventurer 0 Explorer 0 Win Type - Total 0 Types 0/0/0/0/0/0/0/0/0 Lore% 14 Gallery% 17 Achievement% 15 Wizard Run 0 Options --------- Layout 1 ASCII 0 Keyboard 1 Movement Arrows Keybinds 0 Fullscreen 1 Font 24/Smallcaps Map View 50x35 Zoom Use 0% Tactical HUD 1 Map Filters NONE Filters NONE Steam 1 RUN: 90c05c34-620d-43fb-95da-fb4834dddb5c